bitfinex/quotes_BTCUSD_20241117
["timestamp","ask_amount","ask_price","bid_price","bid_amount"]
[1731843776048,0.110321,90645.0,90638.0,0.00396096]
[1731843776270,0.110325,90642.0,90640.0,0.00395686]
[1731843776491,0.110325,90642.0,90635.0,0.02222517]
[1731843776719,0.220633,90648.0,90641.0,0.00395536]
[1731843776951,0.110319,90646.0,90638.0,0.0008561]
[1731843777182,0.11032,90645.0,90642.0,0.0039622]
[1731843777399,0.11032,90645.0,90638.0,0.0008561]
[1731843777861,0.11032,90645.0,90639.0,0.0039622]
[1731843778294,0.220638,90646.0,90639.0,0.0039622]
[1731843778519,0.110321,90645.0,90639.0,0.0039622]
[1731843778730,0.110322,90644.0,90639.0,0.0039622]
[1731843780045,0.110322,90644.0,90639.0,0.04786254]
[1731843780262,0.110322,90644.0,90639.0,0.0039622]
[1731843780475,0.0017122,90647.0,90639.0,0.0039622]
[1731843781192,0.110321,90645.0,90639.0,0.0039622]
[1731843781404,0.110322,90644.0,90639.0,0.0039622]
[1731843781619,0.0017122,90647.0,90639.0,0.04970461]
[1731843781833,0.0017122,90647.0,90641.0,0.110324]
[1731843782057,0.0017122,90647.0,90642.0,0.00220635]
[1731843782494,0.0017122,90647.0,90642.0,0.00616719]
[1731843782499,0.0017122,90647.0,90646.0,0.110319]
[1731843782727,0.0017122,90647.0,90644.0,0.110321]
[1731843782961,0.0017122,90647.0,90646.0,0.00395536]
[1731843783202,0.0017122,90647.0,90645.0,0.00395673]
[1731843783435,0.0017122,90647.0,90646.0,0.00395536]
[1731843783684,0.1120302,90647.0,90639.0,0.04506564]
[1731843783900,0.0017122,90647.0,90646.0,0.00395536]
[1731843784127,0.0017122,90647.0,90641.0,0.110325]
[1731843784584,0.0017122,90647.0,90642.0,0.00396084]
[1731843784868,0.0017122,90647.0,90646.0,0.110319]
[1731843785314,0.0017122,90647.0,90646.0,0.210319]
[1731843785570,0.0017122,90647.0,90646.0,0.21424842]
[1731843785819,0.0017122,90647.0,90646.0,0.21645444]
[1731843786796,0.0017122,90647.0,90646.0,0.32551699]
[1731843787015,0.0017122,90647.0,90646.0,0.32331097]
[1731843787237,0.0017122,90647.0,90646.0,0.15226726]
[1731843787535,0.0017122,90647.0,90646.0,0.22831097]
[1731843788255,0.15905885,90661.0,90660.0,0.110302]
[1731843788702,0.0017144,90662.0,90661.0,0.110301]
[1731843789358,0.0017144,90662.0,90661.0,0.11420793]
[1731843792704,0.0017144,90662.0,90661.0,0.11641367]
[1731843792928,0.0017144,90662.0,90661.0,0.1617185]
[1731843793875,0.0017144,90662.0,90661.0,0.15951276]
[1731843795249,0.0017144,90662.0,90661.0,0.27357531]
[1731843797038,0.0017144,90662.0,90661.0,0.15951276]
[1731843797252,0.0017144,90662.0,90661.0,0.04921176]
[1731843797980,0.0017144,90662.0,90661.0,0.15951276]
[1731843798226,0.00120127,90662.0,90661.0,0.15951276]
[1731843798430,0.00120127,90662.0,90661.0,0.04921176]
[1731843799520,0.00120127,90662.0,90661.0,0.07126605]
[1731843799758,0.00120127,90662.0,90661.0,0.02596122]
[1731843801802,0.00120127,90662.0,90661.0,0.02681722]
[1731843803202,0.110299,90662.0,90661.0,0.00476293]
[1731843803459,0.133299,90662.0,90661.0,0.00476293]
[1731843803711,0.0765,90668.0,90661.0,0.000856]
[1731843803935,0.220571,90674.0,90661.0,0.000856]
[1731843803936,0.110288,90672.0,90664.0,0.110297]
[1731843804166,0.15799,90670.0,90662.0,0.110299]
[1731843804469,0.0477,90670.0,90663.0,0.110298]
[1731843804676,0.15799,90670.0,90663.0,0.00387758]
[1731843805820,0.0477,90670.0,90663.0,0.00387758]
[1731843806028,0.15799,90670.0,90663.0,0.00387758]
[1731843806240,0.15799,90670.0,90662.0,0.110299]
[1731843806458,0.15799,90670.0,90664.0,0.00387622]
[1731843806668,0.15799,90670.0,90661.0,0.111156]
[1731843806905,0.15799,90670.0,90665.0,0.00387592]
[1731843807141,0.0477,90670.0,90663.0,0.110298]
[1731843807389,0.15799,90670.0,90663.0,0.110298]
[1731843807604,0.0808,90681.0,90665.0,0.220592]
[1731843807819,0.220543,90686.0,90665.0,0.220592]
[1731843807820,0.16534665,90678.0,90665.0,0.220592]
[1731843808044,0.16534665,90678.0,90673.0,0.220572]
[1731843808307,0.16534665,90678.0,90675.0,0.110283]
[1731843808559,0.110274,90683.0,90676.0,0.110282]
[1731843808768,0.110275,90682.0,90676.0,0.00387182]
[1731843808983,0.220543,90686.0,90676.0,0.00387182]
[1731843809201,0.110277,90681.0,90675.0,0.110283]
[1731843809428,0.110277,90681.0,90677.0,0.00387865]
[1731843809704,0.110277,90681.0,90676.0,0.00387592]
[1731843809937,0.110277,90681.0,90675.0,0.110283]
[1731843810173,0.110277,90681.0,90677.0,0.00387455]
[1731843810407,0.110277,90681.0,90676.0,0.00387592]
[1731843810640,0.220543,90686.0,90668.0,0.220584]
[1731843810853,0.110278,90680.0,90672.0,0.110286]
[1731843811068,0.110278,90680.0,90673.0,0.110285]
[1731843811766,0.1269,90687.0,90664.0,0.10906255]
[1731843812000,0.330812,90686.0,90678.0,0.110279]
[1731843812251,0.330812,90686.0,90679.0,0.110279]
[1731843812252,0.16534665,90683.0,90679.0,0.110279]
[1731843812504,0.11027,90686.0,90679.0,0.110279]
[1731843812715,0.1269,90687.0,90677.0,0.00220537]
[1731843813008,0.11027,90686.0,90679.0,0.110278]
[1731843813206,0.1269,90687.0,90679.0,0.110278]
[1731843813488,0.11027,90686.0,90680.0,0.110277]
[1731843813726,0.1269,90687.0,90678.0,0.110279]
[1731843813727,0.110272,90685.0,90678.0,0.110279]
[1731843814172,0.1269,90687.0,90677.0,0.220562]
[1731843814395,0.001712,90681.0,90669.0,0.32964455]
[1731843814660,0.001712,90681.0,90669.0,0.10906255]
[1731843814897,0.110278,90680.0,90673.0,0.110285]
[1731843815127,0.001712,90681.0,90674.0,0.02187338]
[1731843815632,0.001712,90681.0,90675.0,0.220567]
[1731843815879,0.001712,90681.0,90679.0,0.110279]
[1731843816378,0.001712,90681.0,90678.0,0.110279]
[1731843817110,0.001712,90681.0,90680.0,0.110277]
[1731843818042,0.0017146,90684.0,90675.0,0.220567]
[1731843818043,0.103987,90683.0,90675.0,0.220567]
[1731843818266,0.0017146,90684.0,90677.0,0.11028]
[1731843818712,0.110275,90683.0,90678.0,0.00383877]
[1731843818946,0.1119876,90684.0,90678.0,0.110279]
[1731843819164,0.220542,90686.0,90674.0,0.02187338]
[1731843819165,0.220542,90686.0,90679.0,0.00383604]
[1731843819396,0.330813,90686.0,90679.0,0.00383604]
[1731843819607,0.110271,90686.0,90680.0,0.110277]
[1731843819868,0.110271,90686.0,90680.0,0.11411577]
[1731843820505,0.110271,90686.0,90680.0,0.00383877]
[1731843820506,0.11027,90686.0,90680.0,0.00383877]
[1731843821224,0.220533,90689.0,90680.0,0.00383877]
[1731843821445,0.110271,90686.0,90680.0,0.00383877]
[1731843821653,0.082,90690.0,90680.0,0.00383877]
[1731843821877,0.110276,90681.0,90674.0,0.13215838]
[1731843822096,0.082,90690.0,90675.0,0.220566]
[1731843822315,0.220536,90688.0,90674.0,0.02187338]
[1731843822536,0.082,90690.0,90676.0,0.00384971]
[1731843822761,0.110272,90685.0,90678.0,0.110279]
[1731843823201,0.220533,90689.0,90678.0,0.110279]
[1731843823202,0.110273,90684.0,90678.0,0.110279]
[1731843823431,0.110269,90687.0,90679.0,0.00383877]
[1731843823670,0.110269,90687.0,90681.0,0.110276]
[1731843823908,0.082,90690.0,90675.0,0.005]
[1731843824129,0.110274,90684.0,90682.0,0.00382647]
[1731843824344,0.110274,90684.0,90678.0,0.10906255]
[1731843824579,0.00011,90682.0,90678.0,0.10906255]
[1731843824790,0.00011,90682.0,90679.0,0.00382653]
[1731843825472,0.00011,90682.0,90680.0,0.01]
[1731843825682,0.00011,90682.0,90681.0,0.00382106]
[1731843826360,0.00011,90682.0,90681.0,0.01382106]
[1731843827040,0.110385,90682.0,90681.0,0.00382106]
[1731843827314,0.110385,90682.0,90678.0,0.10906255]
[1731843827315,0.112097,90682.0,90678.0,0.10906255]
[1731843827819,0.001822,90682.0,90678.0,0.10906255]
[1731843828039,0.001822,90682.0,90679.0,0.00382379]
[1731843828543,0.112098,90682.0,90678.0,0.10906255]
[1731843828773,0.001822,90682.0,90678.0,0.10906255]
[1731843828986,0.001822,90682.0,90679.0,0.11410279]
[1731843829199,0.001822,90682.0,90679.0,0.00382379]
[1731843830293,0.001822,90682.0,90679.0,0.11410179]
[1731843830738,0.001822,90682.0,90679.0,0.00382379]
[1731843833109,0.104094,90685.0,90679.0,0.16341661]
[1731843833325,0.302533,90690.0,90679.0,0.11910179]
[1731843833539,0.110274,90683.0,90679.0,0.00882379]
[1731843833989,0.220538,90687.0,90679.0,0.00882379]
[1731843834207,0.110275,90682.0,90679.0,0.00882379]
[1731843834426,0.110273,90684.0,90679.0,0.00882379]
[1731843834643,0.220536,90688.0,90679.0,0.00382379]
[1731843834887,0.110275,90683.0,90679.0,0.00382379]
[1731843835109,0.110275,90683.0,90679.0,0.00882379]
[1731843835383,0.110272,90685.0,90679.0,0.04967984]
[1731843835598,0.110272,90685.0,90679.0,0.11410179]
[1731843836525,0.220536,90688.0,90679.0,0.00382379]
[1731843836742,0.110273,90684.0,90679.0,0.00382379]
[1731843836985,0.220536,90688.0,90679.0,0.00382379]
[1731843837227,0.110277,90680.0,90679.0,0.00382379]
[1731843837906,0.110283,90676.0,90674.0,0.02187338]
[1731843838383,0.110285,90674.0,90673.0,0.09887444]
[1731843838625,0.110287,90672.0,90671.0,0.09887444]
[1731843838849,0.22057,90674.0,90670.0,0.19887444]
[1731843839069,0.110288,90671.0,90670.0,0.19887444]
[1731843839543,0.110288,90671.0,90670.0,0.09887444]
[1731843840241,0.110288,90671.0,90670.0,0.12048462]
[1731843840711,0.110292,90668.0,90667.0,0.09887444]
[1731843840955,0.110293,90667.0,90666.0,0.000856]
[1731843845903,0.22057,90674.0,90656.0,0.0817]
[1731843845904,0.0769,90675.0,90656.0,0.143718]
[1731843846123,0.110285,90674.0,90668.0,0.110291]
[1731843846339,0.187177,90681.0,90675.0,0.110283]
[1731843846559,0.0769,90681.0,90676.0,0.00391305]
[1731843846779,0.110277,90681.0,90676.0,0.11640053]
[1731843847000,0.110275,90682.0,90677.0,0.110281]
[1731843847222,0.110277,90681.0,90677.0,0.00391168]
[1731843847672,0.110277,90681.0,90675.0,0.110283]
[1731843847897,0.110277,90681.0,90678.0,0.00391031]
[1731843848187,0.102277,90681.0,90676.0,0.110282]
[1731843848363,0.102277,90681.0,90679.0,0.00390894]
[1731843848607,0.102277,90681.0,90676.0,0.110282]
[1731843848844,0.102277,90681.0,90680.0,0.00390758]
[1731843849088,0.102277,90681.0,90676.0,0.110282]
[1731843849320,0.110275,90682.0,90680.0,0.00390758]
[1731843849558,0.110275,90682.0,90677.0,0.110281]
[1731843850029,0.110275,90682.0,90678.0,0.00390796]
[1731843850502,0.110275,90682.0,90677.0,0.110281]
[1731843850772,0.2213928,90688.0,90679.0,0.00390659]
[1731843850773,0.110274,90683.0,90679.0,0.00390659]
[1731843850982,0.110275,90682.0,90678.0,0.00396858]
[1731843851209,0.110275,90682.0,90680.0,0.00396846]
[1731843851451,0.110276,90682.0,90676.0,0.110282]
[1731843851725,0.110276,90682.0,90681.0,0.00396696]
[1731843851922,0.110276,90682.0,90677.0,0.110281]
[1731843852161,0.110276,90682.0,90681.0,0.0039682]
[1731843852636,0.110275,90683.0,90677.0,0.11028]
[1731843852877,0.0017116,90685.0,90677.0,0.11028]
[1731843852878,0.110273,90684.0,90681.0,0.0039682]
[1731843853086,0.110274,90683.0,90677.0,0.110281]
[1731843853299,0.110274,90683.0,90682.0,0.00323064]
[1731843853523,0.110274,90683.0,90680.0,0.02207178]
[1731843853734,0.110274,90683.0,90682.0,0.00322955]
[1731843853947,0.110275,90682.0,90681.0,0.00323064]
[1731843854164,0.110275,90682.0,90680.0,0.02207178]
[1731843854860,0.0017116,90685.0,90680.0,0.02207178]
[1731843855317,0.330824,90683.0,90680.0,0.02207178]
[1731843855588,0.110276,90682.0,90680.0,0.02207178]
[1731843856036,0.0017116,90685.0,90680.0,0.02207178]
[1731843856470,0.110275,90683.0,90680.0,0.02207178]
[1731843857149,0.110275,90682.0,90680.0,0.02207178]
[1731843859153,0.0017116,90685.0,90682.0,0.110275]
[1731843859403,0.0017116,90685.0,90680.0,0.02207178]
[1731843859881,0.0017116,90685.0,90681.0,0.00220528]
[1731843859882,0.1119836,90685.0,90681.0,0.00220528]
[1731843860119,0.0017116,90685.0,90680.0,0.02207178]
[1731843860327,0.0017116,90685.0,90682.0,0.110274]
[1731843860784,0.0017116,90685.0,90676.0,0.19900683]
[1731843861255,0.220546,90684.0,90676.0,0.1]
[1731843861476,0.110275,90682.0,90677.0,0.11028]
[1731843861699,0.110274,90683.0,90678.0,0.11028]
[1731843862367,0.110277,90681.0,90676.0,0.19900683]
[1731843862579,0.110277,90681.0,90676.0,0.1]
[1731843863009,0.102277,90681.0,90676.0,0.210282]
[1731843863241,0.102277,90681.0,90677.0,0.00329656]
[1731843863907,0.102277,90681.0,90680.0,0.0008558]
[1731843864349,0.102277,90681.0,90680.0,0.00414908]
[1731843864577,0.102277,90681.0,90680.0,0.0008558]
[1731843865054,0.102277,90681.0,90680.0,0.00414908]
[1731843865273,0.102277,90681.0,90680.0,0.0008558]
[1731843869101,0.150677,90681.0,90680.0,0.0008558]
[1731843876578,0.237877,90681.0,90680.0,0.0008558]
[1731843877848,0.34693955,90681.0,90680.0,0.0008558]
[1731843878070,0.33893955,90681.0,90680.0,0.0008558]
[1731843885119,0.220548,90683.0,90680.0,0.0008558]
[1731843885325,0.110274,90683.0,90680.0,0.0008558]
[1731843885769,0.110274,90683.0,90681.0,0.00312946]
[1731843885981,0.0017116,90685.0,90681.0,0.00312946]
[1731843886203,0.0017116,90685.0,90682.0,0.110274]
[1731843886441,0.220547,90684.0,90680.0,0.0008558]
[1731843886664,0.0008558,90681.0,90680.0,0.0008558]
[1731843887577,0.0008558,90681.0,90680.0,0.1111328]
[1731843893093,0.2159552,90690.0,90680.0,0.0008558]
[1731843893370,0.11027,90687.0,90681.0,0.110275]
[1731843893590,0.220529,90691.0,90681.0,0.110275]
[1731843893826,0.110272,90685.0,90682.0,0.00312546]
[1731843894232,0.110264,90691.0,90682.0,0.110275]
[1731843894485,0.11027,90686.0,90682.0,0.15400997]
[1731843894906,0.220529,90691.0,90683.0,0.00312328]
[1731843895110,0.110269,90687.0,90683.0,0.00312328]
[1731843895537,0.220533,90689.0,90681.0,0.110276]
[1731843895785,0.11027,90687.0,90684.0,0.00312328]
[1731843896013,0.11027,90687.0,90681.0,0.110276]
[1731843896217,0.11027,90686.0,90681.0,0.110276]
[1731843896454,0.11027,90686.0,90682.0,0.00312437]
[1731843896876,0.11027,90686.0,90681.0,0.110276]
[1731843897087,0.11027,90686.0,90683.0,0.00311566]
[1731843897304,0.11027,90686.0,90682.0,0.00311675]
[1731843897520,0.11027,90686.0,90684.0,0.00311457]
[1731843897754,0.11027,90686.0,90683.0,0.00311566]
[1731843897967,0.11027,90686.0,90685.0,0.00311347]
[1731843898183,0.11027,90686.0,90684.0,0.00311457]
[1731843898406,0.11027,90686.0,90685.0,0.00311347]
[1731843898626,0.2222368,90694.0,90685.0,0.00311347]
[1731843898849,0.110268,90688.0,90686.0,0.00311894]
[1731843899057,0.220531,90690.0,90686.0,0.00311894]
[1731843899265,0.110269,90687.0,90682.0,0.110274]
[1731843899483,0.220533,90689.0,90682.0,0.110274]
[1731843899484,0.110267,90689.0,90684.0,0.110272]
[1731843899705,0.2222368,90694.0,90683.0,0.00311675]
[1731843899927,0.110266,90690.0,90684.0,0.110272]
[1731843900149,0.110267,90689.0,90684.0,0.11339313]
[1731843900369,0.220531,90690.0,90684.0,0.00312113]
[1731843900856,0.110268,90689.0,90684.0,0.00312113]
[1731843901066,0.0017138,90694.0,90681.0,0.220551]
[1731843901067,0.11027,90687.0,90685.0,0.00311785]
[1731843901462,0.11027,90687.0,90681.0,0.110276]
[1731843901705,0.11027,90687.0,90686.0,0.00311347]
[1731843901911,0.11027,90687.0,90682.0,0.110275]
[1731843902153,0.11027,90687.0,90686.0,0.00311347]
[1731843902361,0.11027,90687.0,90682.0,0.110275]
[1731843902542,0.11027,90687.0,90686.0,0.00311347]
[1731843902778,0.11027,90687.0,90682.0,0.110275]
[1731843902989,0.110268,90688.0,90686.0,0.00311347]
[1731843903206,0.110268,90688.0,90681.0,0.110275]
[1731843903459,0.110268,90688.0,90687.0,0.00311347]
[1731843903677,0.220533,90689.0,90682.0,0.00311894]
[1731843903900,0.110271,90686.0,90681.0,0.110275]
[1731843904143,0.110271,90686.0,90683.0,0.00311894]
[1731843904368,0.110271,90686.0,90682.0,0.00311675]
[1731843904583,0.110271,90686.0,90684.0,0.00311457]
[1731843904798,0.110271,90686.0,90676.0,0.31957191]
[1731843904799,0.2222358,90694.0,90677.0,0.04169616]
[1731843905015,0.23677,90686.0,90685.0,0.00369711]
[1731843905222,0.22056,90679.0,90674.0,0.09900791]
[1731843905480,0.110274,90683.0,90677.0,0.110281]
[1731843905688,0.1265,90686.0,90677.0,0.11028]
[1731843905689,0.110273,90684.0,90677.0,0.11028]
[1731843905903,0.220543,90685.0,90678.0,0.00370344]
[1731843906140,0.110272,90685.0,90678.0,0.00370344]
[1731843906350,0.110272,90685.0,90680.0,0.110276]
[1731843906593,0.110272,90685.0,90679.0,0.11398281]
[1731843906809,0.110272,90685.0,90681.0,0.00370208]
[1731843907025,0.110273,90684.0,90680.0,0.00370344]
[1731843907200,0.110273,90684.0,90682.0,0.00370071]
[1731843907452,0.110273,90684.0,90679.0,0.110278]
[1731843907664,0.110273,90684.0,90683.0,0.00369797]
[1731843907870,0.110273,90684.0,90679.0,0.110278]
[1731843908080,0.102273,90684.0,90683.0,0.00369797]
[1731843908286,0.102273,90684.0,90677.0,0.220562]
[1731843908287,0.110274,90683.0,90677.0,0.330842]
[1731843908499,0.110274,90683.0,90678.0,0.110279]
[1731843908734,0.0809,90691.0,90676.0,0.10906255]
[1731843908941,0.0017138,90694.0,90673.0,0.02255596]
[1731843908942,0.110285,90674.0,90673.0,0.1]
[1731843909392,0.22056,90678.0,90673.0,0.1]
[1731843909614,0.110285,90674.0,90673.0,0.1]
[1731843909864,0.220543,90685.0,90671.0,0.06659649]
[1731843909865,0.110286,90673.0,90671.0,0.06659649]
[1731843910096,0.220565,90676.0,90671.0,0.06659649]
[1731843910320,0.110286,90673.0,90671.0,0.02227923]
[1731843910784,0.220565,90676.0,90671.0,0.02227923]
[1731843910785,0.110283,90675.0,90671.0,0.02227923]
[1731843910993,0.441092,90684.0,90680.0,0.0017114]
[1731843911169,0.110276,90681.0,90680.0,0.0017114]
[1731843914914,0.13075334,90681.0,90680.0,0.0017114]
[1731843917321,0.110276,90681.0,90680.0,0.0017114]
[1731843917551,0.13075606,90681.0,90680.0,0.0017114]
[1731843917979,0.13575606,90681.0,90680.0,0.0017114]
[1731843918191,0.26195606,90681.0,90680.0,0.0017114]
[1731843919938,0.30637477,90681.0,90680.0,0.0017114]
[1731843920381,0.28589471,90681.0,90680.0,0.0017114]
[1731843920592,0.30635759,90681.0,90680.0,0.0017114]
[1731843921945,0.29465871,90681.0,90680.0,0.0017114]
[1731843923024,0.25393888,90681.0,90680.0,0.0017114]
[1731843930137,0.38600143,90681.0,90680.0,0.0017114]
[1731843937765,0.39100143,90681.0,90680.0,0.0017114]
[1731843938213,0.38300143,90681.0,90680.0,0.0017114]
[1731843938657,0.24093888,90681.0,90680.0,0.0017114]
[1731843940144,0.220476,90681.0,90680.0,0.0017114]
[1731843940996,0.1262,90681.0,90655.0,0.05926017]
[1731843941208,0.110293,90667.0,90666.0,0.04518436]
[1731843941432,0.1262,90681.0,90656.0,0.11280685]
[1731843941653,0.220555,90680.0,90656.0,0.10906255]
[1731843941885,0.1262,90681.0,90656.0,0.10906255]
[1731843942095,0.110301,90661.0,90656.0,0.21936855]
[1731843942540,0.220596,90664.0,90660.0,0.02198257]
[1731843942753,0.220596,90664.0,90661.0,0.10906255]
[1731843942969,0.110299,90662.0,90661.0,0.10906255]
[1731843944418,0.1312,90681.0,90655.0,0.10452071]
[1731843944419,0.110307,90656.0,90655.0,0.04526054]
[1731843944880,0.110309,90654.0,90649.0,0.182]
[1731843945101,0.110309,90654.0,90650.0,0.10906255]
[1731843945517,0.11031,90654.0,90650.0,0.10906255]
[1731843946322,0.11031,90654.0,90653.0,0.02238193]
[1731843953145,0.10231,90654.0,90653.0,0.02238193]
[1731843953350,0.10231,90654.0,90653.0,0.02589385]
[1731843956339,0.10231,90654.0,90653.0,0.00351192]
[1731843956545,0.15141,90654.0,90653.0,0.00351192]
[1731843956754,0.110313,90651.0,90650.0,0.10906255]
[1731843957382,0.220622,90653.0,90650.0,0.02186209]
[1731843957610,0.110313,90651.0,90650.0,0.02186209]
[1731843958767,0.220622,90653.0,90643.0,0.0990709]
[1731843958992,0.110321,90644.0,90643.0,0.0990709]
[1731843959194,0.0008566,90658.0,90649.0,0.110315]
[1731843959399,0.11031,90653.0,90650.0,0.00220603]
[1731843959613,0.0008566,90658.0,90650.0,0.11126865]
[1731843959845,0.02047182,90657.0,90652.0,0.11031]
[1731843960057,0.1111616,90658.0,90652.0,0.110311]
[1731843960058,0.02047182,90656.0,90652.0,0.110311]
[1731843960273,0.1111616,90658.0,90652.0,0.110311]
[1731843960512,0.02047244,90657.0,90652.0,0.110311]
[1731843960741,0.0008566,90658.0,90650.0,0.29507555]
[1731843960961,0.0008566,90658.0,90650.0,0.110313]
[1731843961215,0.110307,90656.0,90651.0,0.22158052]
[1731843961418,0.1111616,90658.0,90653.0,0.110309]
[1731843961617,0.1111616,90658.0,90654.0,0.110309]
[1731843961941,0.1111616,90658.0,90651.0,0.10906255]
[1731843961942,0.1111616,90658.0,90652.0,0.110311]
[1731843962187,0.110308,90655.0,90651.0,0.10906255]
[1731843962617,0.110308,90655.0,90651.0,0.15344614]
[1731843962819,0.110309,90654.0,90651.0,0.15344614]
[1731843963236,0.110309,90654.0,90651.0,0.25259068]
[1731843963744,0.0008566,90658.0,90651.0,0.25259068]
[1731843963959,0.220614,90656.0,90651.0,0.25259068]
[1731843964175,0.110309,90655.0,90651.0,0.25259068]
[1731843964384,0.0008566,90658.0,90651.0,0.25259068]
[1731843964599,0.24107684,90657.0,90651.0,0.25259068]
[1731843964809,0.110311,90653.0,90651.0,0.25259068]
[1731843965246,0.110309,90655.0,90651.0,0.15344614]
[1731843965429,0.02046664,90654.0,90651.0,0.15344614]
[1731843965690,0.02046664,90653.0,90651.0,0.15344614]
[1731843965915,0.110311,90652.0,90651.0,0.15344614]
[1731843966124,0.110311,90653.0,90651.0,0.15344614]
[1731843966334,0.110311,90652.0,90651.0,0.15344614]
[1731843966753,0.0008566,90658.0,90651.0,0.15344614]
[1731843966969,0.13077384,90657.0,90652.0,0.110311]
[1731843967265,0.02046684,90656.0,90651.0,0.36290268]
[1731843967477,0.110307,90656.0,90652.0,0.09914454]
[1731843967681,0.110308,90655.0,90652.0,0.09914454]
[1731843968079,0.102308,90655.0,90651.0,0.25259068]
[1731843968322,0.102308,90655.0,90653.0,0.00331957]
[1731843968561,0.102308,90655.0,90651.0,0.25259068]
[1731843968562,0.0204694,90654.0,90652.0,0.00332094]
[1731843968776,0.110307,90656.0,90654.0,0.0033182]
[1731843968990,0.02047002,90655.0,90651.0,0.25259068]
[1731843969197,0.02047002,90654.0,90651.0,0.15344614]
[1731843969415,0.0008566,90658.0,90651.0,0.37407114]
[1731843969629,0.11031,90653.0,90652.0,0.09914454]
[1731843969853,0.186511,90652.0,90651.0,0.04438359]
[1731843970095,0.0762,90652.0,90651.0,0.04438359]
[1731843970306,0.1111616,90658.0,90653.0,0.11031]
[1731843970528,0.02047007,90657.0,90652.0,0.10906255]
[1731843970765,0.02047007,90657.0,90653.0,0.11031]
[1731843970993,0.02047007,90656.0,90652.0,0.10906255]
[1731843971232,0.02047007,90655.0,90652.0,0.10906255]
[1731843971428,0.02047007,90654.0,90652.0,0.10906255]
[1731843971689,0.0008566,90658.0,90652.0,0.10906255]
[1731843971690,0.110308,90655.0,90652.0,0.10906255]
[1731843971901,0.0008566,90658.0,90657.0,0.110305]
[1731843972111,0.0008566,90658.0,90657.0,0.22157325]
[1731843972527,0.0008566,90658.0,90657.0,0.58769758]
[1731843972732,0.0008566,90658.0,90657.0,0.58549188]
[1731843972963,0.0008566,90658.0,90657.0,0.68549188]
[1731843973197,0.0008566,90658.0,90657.0,0.76119188]
[1731843973683,0.0008566,90658.0,90657.0,0.76619188]
[1731843974150,0.0008566,90658.0,90657.0,0.76119188]
[1731843974388,0.0008566,90658.0,90657.0,0.69049188]
[1731843974613,0.0008566,90658.0,90657.0,0.68549188]
[1731843974837,0.0008566,90658.0,90657.0,0.69049188]
[1731843976342,0.0008566,90658.0,90657.0,0.98345172]
[1731843976806,0.0008566,90658.0,90657.0,0.75734865]
[1731843977029,0.0008566,90658.0,90657.0,0.75696828]
[1731843978388,0.0008566,90658.0,90657.0,1.004631]
[1731843978606,0.0008566,90658.0,90657.0,0.75696828]
[1731843979535,0.0008566,90658.0,90657.0,0.64666328]
[1731843979757,0.0008566,90658.0,90657.0,0.75696828]
[1731843980931,0.0008566,90658.0,90657.0,0.95007816]
[1731843981133,0.0008566,90658.0,90657.0,0.75196828]
[1731843981341,0.0008566,90658.0,90657.0,0.69625009]
[1731843981545,0.0008566,90658.0,90657.0,0.33050613]
[1731843981752,0.0008566,90658.0,90657.0,0.47907534]
[1731843982408,0.0008566,90658.0,90657.0,0.33050613]
[1731843983064,0.0799,90678.0,90658.0,0.302409]
[1731843983273,0.16534665,90673.0,90662.0,0.09903276]
[1731843983490,0.110286,90674.0,90665.0,0.210295]
[1731843983698,0.110286,90674.0,90666.0,0.21935655]
[1731843983905,0.220563,90677.0,90666.0,0.1123363]
[1731843984115,0.110283,90676.0,90668.0,0.110292]
[1731843984322,0.13072829,90676.0,90669.0,0.10906255]
[1731843984505,0.13072929,90675.0,90669.0,0.10906255]
[1731843984735,0.110284,90675.0,90670.0,0.00327102]
[1731843984943,0.110284,90675.0,90671.0,0.10906255]
[1731843985154,0.110282,90676.0,90671.0,0.10906255]
[1731843985358,0.02044359,90675.0,90672.0,0.00326692]
[1731843985568,0.110284,90675.0,90672.0,0.00326692]
[1731843986231,0.0476,90675.0,90672.0,0.00326692]
[1731843986697,0.0476,90675.0,90671.0,0.10906255]
[1731843986929,0.0476,90675.0,90673.0,0.00325786]
[1731843987160,0.0476,90675.0,90672.0,0.00325923]
[1731843987377,0.157884,90675.0,90672.0,0.00325923]
[1731843988530,0.157884,90675.0,90673.0,0.00325786]
[1731843988741,0.157884,90675.0,90674.0,0.0217796]
[1731843989218,0.157884,90675.0,90674.0,0.02503609]
[1731843991572,0.0476,90675.0,90674.0,0.02503609]
[1731843993579,0.157883,90675.0,90674.0,0.02503609]
[1731843993786,0.157883,90675.0,90674.0,0.00325649]
[1731843993787,0.239483,90675.0,90674.0,0.00325649]
[1731843994274,0.239483,90675.0,90655.0,0.2214713]
[1731843994275,0.110293,90667.0,90659.0,0.20933576]
[1731843994487,0.110293,90667.0,90657.0,0.30933776]
[1731843994698,0.1292,90675.0,90663.0,0.09903276]
[1731843994931,0.110279,90679.0,90672.0,0.0008562]
[1731843995370,0.1609334,90681.0,90672.0,0.1111432]
[1731843995600,0.0506564,90681.0,90674.0,0.1]
[1731843995843,0.0506564,90681.0,90680.0,0.110277]
[1731843996059,0.0506564,90681.0,90680.0,0.31933955]
[1731843996273,0.0506564,90681.0,90680.0,0.32258411]
[1731843997618,0.0008564,90681.0,90680.0,0.32258411]
[1731843998135,0.1065432,90694.0,90680.0,0.36085625]
[1731843998393,0.1065432,90694.0,90682.0,0.09890478]
[1731843998617,0.110262,90693.0,90685.0,0.11027]
[1731843998820,0.110262,90693.0,90686.0,0.21933255]
[1731843999055,0.1314,90696.0,90686.0,0.2225727]
[1731843999279,0.110266,90690.0,90686.0,0.1123027]
[1731843999487,0.110263,90693.0,90686.0,0.2225717]
[1731843999704,0.220522,90694.0,90686.0,0.2225717]
[1731843999705,0.220522,90694.0,90686.0,0.1123027]
[1731843999932,0.220524,90693.0,90686.0,0.1123027]
[1731844000168,0.110269,90687.0,90686.0,0.00324015]
[1731844000400,0.241669,90687.0,90686.0,0.00324015]
[1731844000633,0.241669,90687.0,90680.0,0.04404544]
[1731844000634,0.110276,90681.0,90680.0,0.04404544]
[1731844000835,0.1314,90687.0,90670.0,0.1]
[1731844001056,0.1314,90687.0,90673.0,0.10906255]
[1731844001270,0.110283,90676.0,90673.0,0.11229999]
[1731844001485,0.005,90693.0,90673.0,0.11229999]